Service Area,Expense Type,Date,Transaction Number,Amount,Supplier
Leisure Facility Improvement,Consultants Fees,2010-04-07,5000070890,2375.5,New Horizons
Leisure Facility Improvement,Ext Design & Superv,2010-05-06,5000076373,20000.0,Fairhursts Design Group
Leisure Facility Improvement,Ext Design & Superv,2010-05-27,5000080597,23850.0,Fairhursts Design Group
Leisure Facility Improvement,Pay To Pvte Contract,2010-06-21,5000085428,607.56,New Horizons
Leisure Facility Improvement,Ext Design & Superv,2010-07-06,5000088548,20000.0,Fairhursts Design Group
Leisure Facility Improvement,Ext Design & Superv,2010-08-12,5000095808,20000.0,Fairhursts Design Group
Leisure Facility Improvement,Ext Design & Superv,2010-09-02,5000099129,20000.0,Fairhursts Design Group
Leisure Facility Improvement,"Pl, Equip & Furn   C",2010-09-22,5000102752,2695.92,Marshalls Plc
Leisure Facility Improvement,"Pl, Equip & Furn   C",2010-10-04,5000104573,2004.0,Furnitubes Int Ltd.
Leisure Facility Improvement,"Pl, Equip & Furn   C",2010-10-07,5000105295,825.0,Groundsell Contracting Ltd
Leisure Facility Improvement,Cap Contractor Pmts,2010-10-12,5000106293,1442.8,Mcardle Sport Tec Ltd
Leisure Facility Improvement,Ext Design & Superv,2010-10-12,5000106292,20000.0,Fairhursts Design Group
Leisure Facility Improvement,Cap Contractor Pmts,2010-10-14,5000106589,520.0,Kompan Ltd
Leisure Facility Improvement,Cap Contractor Pmts,2010-10-19,5000107624,105610.29,Kompan Ltd
Leisure Facility Improvement,Ext Design & Superv,2010-10-25,5000108685,20000.0,Fairhursts Design Group
Leisure Facility Improvement,Ext Design & Superv,2010-11-10,5000111781,3224.21,Redacted Personal Data
Leisure Facility Improvement,Ext Design & Superv,2010-11-26,5000114576,20000.0,Fairhursts Design Group
Leisure Facility Improvement,Cap Contractor Pmts,2010-12-03,5000115460,1027.0,Redacted Personal Data
Leisure Facility Improvement,Ext Design & Superv,2011-01-05,5000119597,20000.0,Fairhursts Design Group
Leisure Facility Improvement,Ext Design & Superv,2011-01-25,5000123220,20000.0,Fairhursts Design Group
Leisure Facility Improvement,Cap Contractor Pmts,2011-02-17,5000127773,37884.02,Mountjoy Ltd [Sb]
Leisure Facility Improvement,Ext Design & Superv,2011-02-22,5000128484,1776.07,Redacted Personal Data
Leisure Facility Improvement,"Pl, Equip & Furn   C",2011-03-01,5000129484,950.0,Redacted Personal Data
Leisure Facility Improvement,Ext Design & Superv,2011-03-10,5000131465,20000.0,Fairhursts Design Group
Leisure Facility Improvement,Cap Contractor Pmts,2011-03-10,5000131475,109648.86,Mountjoy Ltd [Sb]
Leisure Facility Improvement,"Pl, Equip & Furn   C",2011-03-16,5000132078,575.0,Kompan Ltd
Leisure Facility Improvement,Cap Contractor Pmts,2011-03-30,5000134873,1873.67,A C Lighting Ltd
Leisure Facility Improvement,Ext Design & Superv,2011-04-04,5000135590,20000.0,Fairhursts Design Group
Leisure Facility Improvement,Cap Contractor Pmts,2011-04-05,5000135673,72963.25,Mountjoy Ltd [Sb]
Leisure Facility Improvement,Cap Contractor Pmts,2011-04-14,5000137227,920.0,Paktron Ltd
Leisure Facility Improvement,Cap Contractor Pmts,2011-05-04,5000139662,18831.54,Arkay Engineering Limited
Leisure Facility Improvement,Cap Contractor Pmts,2011-05-04,5000139672,944.29,Redacted Personal Data
Leisure Facility Improvement,Cap Contractor Pmts,2011-05-06,5000139996,101627.85,Mountjoy Ltd [Sb]
Leisure Facility Improvement,Ext Design & Superv,2011-05-13,5000141109,15000.0,Fairhursts Design Group
Leisure Facility Improvement,Cap Contractor Pmts,2011-06-07,5000144462,1060.62,Pulse Fitness Limited
Leisure Facility Improvement,"Pl, Equip & Furn   C",2011-06-09,5000145028,9950.0,Qdos Event Hire Ltd
Leisure Facility Improvement,Ext Design & Superv,2011-06-14,5000145428,15000.0,Fairhursts Design Group
Leisure Facility Improvement,Cap Contractor Pmts,2011-06-16,5000145970,785.0,Signpost Express
Leisure Facility Improvement,Cap Contractor Pmts,2011-07-06,5000148595,28871.77,Mountjoy Ltd [Sb]
Leisure Facility Improvement,Ext Design & Superv,2011-07-14,5000150244,1000.0,Fairhursts Design Group
Leisure Facility Improvement,Ext Design & Superv,2011-07-14,5000150242,9437.5,Fairhursts Design Group
Leisure Facility Improvement,Ext Design & Superv,2011-07-27,5000151909,18000.0,Fairhursts Design Group
Leisure Facility Improvement,Ext Design & Superv,2011-07-27,5000151911,4250.0,Fairhursts Design Group
Leisure Facility Improvement,Ext Design & Superv,2011-07-27,5000151910,-18000.0,Fairhursts Design Group
Leisure Facility Improvement,Ext Design & Superv,2011-08-03,5000152748,4750.0,Fairhursts Design Group
Leisure Facility Improvement,Cap Contractor Pmts,2011-08-09,5000153298,22756.75,Audience Systems Ltd
Leisure Facility Improvement,Ict H/Ware & S/Ware,2011-08-11,5000153734,28200.01,Intellident Limited
Leisure Facility Improvement,Cap Contractor Pmts,2011-08-16,5000154569,5794.51,Mountjoy Ltd [Sb]
Leisure Facility Improvement,Ext Design & Superv,2011-08-17,5000154855,4250.0,Fairhursts Design Group
Leisure Facility Improvement,Ext Design & Superv,2011-08-17,5000154848,4750.0,Fairhursts Design Group
Leisure Facility Improvement,Ext Design & Superv,2011-08-17,5000154888,9437.5,Fairhursts Design Group
Leisure Facility Improvement,Ict H/Ware & S/Ware,2011-08-18,5000155115,15789.23,Intellident Limited
Leisure Facility Improvement,Ext Design & Superv,2011-09-21,5000159707,7000.0,Fairhursts Design Group
Leisure Facility Improvement,Ict H/Ware & S/Ware,2011-09-21,5000159816,6736.8,Intellident Limited
Leisure Facility Improvement,Ext Design & Superv,2011-10-12,5000162860,11000.0,Fairhursts Design Group
Leisure Facility Improvement,Ext Design & Superv,2011-10-12,5000162856,5750.0,Fairhursts Design Group
Leisure Facility Improvement,Cap Contractor Pmts,2011-10-27,5000164123,45513.5,Audience Systems Ltd
Leisure Facility Improvement,Cap Contractor Pmts,2011-11-05,1900419605,45513.5,Audience Systems Ltd
Leisure Facility Improvement,Cap Contractor Pmts,2011-11-07,5000165327,5260.0,Magic Carpets
Leisure Facility Improvement,Ict H/Ware & S/Ware,2011-11-08,5000165489,14870.0,Intellident Limited
Leisure Facility Improvement,Ict H/Ware & S/Ware,2011-11-08,5000165487,20482.0,Intellident Limited
Leisure Facility Improvement,Ict H/Ware & S/Ware,2011-11-08,5000165485,619.5,Intellident Limited
Leisure Facility Improvement,Ict H/Ware & S/Ware,2011-11-08,5000165483,2275.0,Intellident Limited
Leisure Facility Improvement,Ict H/Ware & S/Ware,2011-11-08,5000165478,833.0,Intellident Limited
Leisure Facility Improvement,Ict H/Ware & S/Ware,2011-11-11,5000166257,4771.2,Intellident Limited
Leisure Facility Improvement,Ext Design & Superv,2011-11-16,5000167421,5000.0,Fairhursts Design Group
Leisure Facility Improvement,Ext Design & Superv,2011-11-16,5000167422,4875.0,Fairhursts Design Group
Leisure Facility Improvement,Ict H/Ware & S/Ware,2011-11-21,5000168049,1257.9,Intellident Limited
Leisure Facility Improvement,Ict H/Ware & S/Ware,2011-11-21,5000168051,567.0,Intellident Limited
Leisure Facility Improvement,Ict H/Ware & S/Ware,2011-11-21,5000168053,1050.0,Intellident Limited
Leisure Facility Improvement,"Pl, Equip & Furn   C",2011-11-22,5000168342,1774.0,Gresham Office Furniture
Leisure Facility Improvement,Cap Contractor Pmts,2011-11-22,5000168352,-45513.5,Audience Systems Ltd
Leisure Facility Improvement,Ict H/Ware & S/Ware,2011-12-06,5000170290,-14870.0,Intellident Limited
Leisure Facility Improvement,Ict H/Ware & S/Ware,2011-12-06,5000170292,14870.1,Intellident Limited
Leisure Facility Improvement,Cap Contractor Pmts,2011-12-08,5000170575,3000.0,Linsch Consultants
Leisure Facility Improvement,Ext Design & Superv,2011-12-08,5000170661,5000.0,Fairhursts Design Group
Leisure Facility Improvement,Cap Contractor Pmts,2011-12-20,5000172821,22756.75,Audience Systems Ltd
Leisure Facility Improvement,Professional Service,2011-12-21,5000173132,765.0,Clarke Willmott Llp
Leisure Facility Improvement,Payment To Contractors   Capital,2012-01-30,5000177679,-11183.14,Wight Fire Co Ltd [Sb]
